fUST/lending_fUST_20260401
["ID","MTS","AMOUNT","RATE_DAILY","PERIOD"]
[419173111,1775001047161,-2277.60073335,0.00027444,2]
[419173112,1775001047172,-4740.16662601,0.00027444,2]
[419173113,1775001047188,-833.04429376,0.00027444,2]
[419173114,1775001047199,-1041.66666667,0.00027444,2]
[419173116,1775001047210,-1801.41093038,0.00027444,2]
[419173120,1775001047236,-151.0,0.00025533,2]
[419173122,1775001047246,-195.38830132,0.00027444,2]
[419173123,1775001047256,-12518.90595369,0.00027444,2]
[419173124,1775001047271,-1257.87188007,0.00027444,2]
[419173125,1775001047282,-19116.41606581,0.00027444,2]
[419173138,1775001179464,816.32,0.00032877,120]
[419173140,1775001281109,1352.27,0.00032877,120]
[419173143,1775001304815,5000.0,0.00032876,120]
[419173144,1775001339884,1027.3,0.000326,120]
[419173145,1775001340852,1027.3,0.00032743,120]
[419173146,1775001414462,1000.0,0.00030137,120]
[419173147,1775001415114,1000.0,0.00030137,120]
[419173148,1775001415869,1000.0,0.00030137,120]
[419173149,1775001416576,1000.0,0.00030137,120]
[419173150,1775001417253,1000.0,0.00030137,120]
[419173151,1775001418457,1000.0,0.00030137,120]
[419173152,1775001419298,1000.0,0.00030137,120]
[419173159,1775001420034,1000.0,0.00030137,120]
[419173162,1775001487243,1000.0,0.00030137,120]
[419173163,1775001488486,1000.0,0.00030137,120]
[419173164,1775001489559,1000.0,0.00030137,120]
[419173165,1775001490229,1000.0,0.00030137,120]
[419173166,1775001491063,1000.0,0.00030137,120]
[419173167,1775001491801,1000.0,0.00030137,120]
[419173168,1775001492514,1000.0,0.00030137,120]
[419173170,1775001493308,1000.0,0.00030137,120]
[419173171,1775001493999,1000.0,0.00030137,120]
[419173172,1775001494674,1000.0,0.00030137,120]
[419173173,1775001495485,1000.0,0.00030137,120]
[419173174,1775001496282,1000.0,0.00030137,120]
[419173193,1775001719152,-1614.2826153,0.00013292,8]
[419173304,1775002232473,-5282.252,5e-05,2]
[419173359,1775002238813,-520.85938128,5e-05,2]
[419173361,1775002238824,-262.13854487,5e-05,2]
[419173367,1775002238868,-235.45600931,5e-05,2]
[419173369,1775002238878,-5000.0,0.00011389,2]
[419173370,1775002238887,-1200.0,0.00011503,2]
[419173373,1775002238898,-5000.0,0.00011504,2]
[419173374,1775002238908,-5000.0,0.0001162,2]
[419173377,1775002238919,-300.0,0.00011736,2]
[419173379,1775002238929,-300.0,0.00011736,2]
[419173380,1775002238939,-300.0,0.00011736,2]
[419173382,1775002238948,-300.0,0.00011736,2]
[419173384,1775002238958,-1106.3935368,0.00011737,2]
[419173386,1775002238968,-300.0,0.00012178,4]
[419173388,1775002238976,-292.82,0.00012178,14]
[419173390,1775002238985,-1680.0,0.00012653,2]
[419173392,1775002238994,-420.0,0.00012887,2]
[419173394,1775002239003,-420.0,0.00012887,2]
[419173396,1775002239013,-420.0,0.00012887,2]
[419173398,1775002239023,-214.07,0.000135,2]
[419173400,1775002239032,-1000.0,0.00013699,2]
[419173402,1775002239041,-2351.0,0.00013919,2]
[419173404,1775002239050,-480.0,0.00014151,2]
[419173405,1775002239059,-587.0,0.00014151,2]
[419173407,1775002239068,-587.0,0.00014151,2]
[419173409,1775002239077,-500.0,0.00015307,2]
[419173411,1775002239086,-500.0,0.00015307,2]
[419173413,1775002239096,-574.86352701,0.00015307,2]
[419173415,1775002239105,-500.0,0.00015307,2]
[419173417,1775002239114,-500.0,0.00015307,2]
[419173419,1775002239123,-500.0,0.00015307,2]
[419173421,1775002239131,-500.0,0.00015307,2]
[419173423,1775002239140,-500.0,0.00015307,2]
[419173425,1775002239149,-500.0,0.00015307,2]
[419173427,1775002239159,-500.0,0.00015307,2]
[419173429,1775002239168,-500.0,0.00015307,2]
[419173431,1775002239178,-500.0,0.00015307,2]
[419173433,1775002239187,-500.0,0.00015307,2]
[419173435,1775002239196,-500.0,0.00015307,2]
[419173437,1775002239205,-500.0,0.00015307,2]
[419173439,1775002239214,-500.0,0.00015307,2]
[419173441,1775002239223,-500.0,0.00015307,2]
[419173442,1775002239234,-500.0,0.00015307,2]
[419173444,1775002239244,-500.0,0.00015307,2]
[419173446,1775002239253,-500.0,0.00015307,2]
[419173448,1775002239263,-500.0,0.00015307,2]
[419173450,1775002239272,-500.0,0.00015307,2]
[419173452,1775002239281,-500.0,0.00015307,2]
[419173454,1775002239290,-500.0,0.00015307,2]
[419173456,1775002239299,-500.0,0.00015307,2]
[419173458,1775002239308,-500.0,0.00015307,2]
[419173460,1775002239317,-500.0,0.00015307,2]
[419173462,1775002239326,-500.0,0.00015307,2]
[419173464,1775002239335,-500.0,0.00015307,2]
[419173466,1775002239344,-500.0,0.00015307,2]
[419173468,1775002239353,-500.0,0.00015307,2]
[419173470,1775002239364,-500.0,0.00015307,2]
[419173472,1775002239373,-500.0,0.00015307,2]
[419173474,1775002239383,-500.0,0.00015307,2]
[419173476,1775002239392,-500.0,0.00015307,2]
[419173478,1775002239401,-500.0,0.00015307,2]
[419173480,1775002239410,-500.0,0.00015307,2]
[419173482,1775002239420,-500.0,0.00015307,2]
[419173484,1775002239429,-500.0,0.00015307,2]
[419173486,1775002239440,-500.0,0.00015307,2]
[419173488,1775002239449,-500.0,0.00015307,2]
[419173490,1775002239459,-500.0,0.00015307,2]
[419173492,1775002239468,-242.49949606,0.00015307,2]
[419173494,1775002239478,-500.0,0.00015307,2]
[419173496,1775002239488,-500.0,0.00015307,2]
[419173498,1775002239497,-500.0,0.00015307,2]
[419173500,1775002239509,-500.0,0.00015307,2]
[419173502,1775002239519,-500.0,0.00015307,2]
[419173504,1775002239529,-500.0,0.00015307,2]
[419173506,1775002239539,-500.0,0.00015307,2]
[419173507,1775002239550,-500.0,0.00015307,2]
[419173509,1775002239560,-500.0,0.00015307,2]
[419173511,1775002239571,-325.85124919,0.00015307,2]
[419173513,1775002239581,-500.0,0.00015307,2]
[419173515,1775002239591,-500.0,0.00015307,2]
[419173517,1775002239601,-500.0,0.00015307,2]
[419173519,1775002239611,-500.0,0.00015307,2]
[419173521,1775002239620,-500.0,0.00015307,2]
[419173523,1775002239629,-500.0,0.00015307,2]
[419173525,1775002239639,-643.22235127,0.00015307,2]
[419173527,1775002239648,-500.0,0.00015307,2]
[419173529,1775002239657,-500.0,0.00015307,2]
[419173531,1775002239667,-500.0,0.00015307,2]
[419173533,1775002239676,-500.0,0.00015307,2]
[419173535,1775002239686,-500.0,0.00015307,2]
[419173537,1775002239695,-500.0,0.00015307,2]
[419173539,1775002239706,-500.0,0.00015307,2]
[419173542,1775002239718,-500.0,0.00015307,2]
[419173543,1775002239729,-500.0,0.00015307,2]
[419173545,1775002239738,-500.0,0.00015307,2]
[419173547,1775002239746,-500.0,0.00015307,2]
[419173549,1775002239755,-273.13424407,0.00015307,2]
[419173693,1775002241413,-226.86575593,0.00015307,2]
[419173694,1775002241423,-500.0,0.00015307,2]
[419173695,1775002241432,-500.0,0.00015307,2]
[419173696,1775002241442,-500.0,0.00015307,2]
[419173697,1775002241451,-143.13223955,0.00015307,2]
[419173698,1775002241464,-356.86776045,0.00015307,2]
[419173699,1775002241473,-500.0,0.00015307,2]
[419173700,1775002241482,-500.0,0.00015307,2]
[419173701,1775002241491,-500.0,0.00015307,2]
[419173702,1775002241501,-2217.74190798,0.00015308,2]
[419173703,1775002241512,-2329.1941798,0.00015308,2]
[419173932,1775002243758,-42925.01464942,0.00015308,2]
[419173934,1775002243768,-3292.0,0.0001531,2]
[419173936,1775002243777,-500.0,0.00015373,2]
[419173938,1775002243787,-823.0,0.00015539,2]
[419173940,1775002243796,-626.0,0.00015539,2]
[419173942,1775002243806,-250.0,0.00015823,2]
[419173944,1775002243815,-300.0,0.00016108,2]
[419173946,1775002243825,-4609.0,0.00016842,2]
[419173948,1775002243835,-1152.0,0.00017062,2]
[419173950,1775002243845,-500.0,0.00017573,2]
[419173952,1775002243854,-500.0,0.00017573,2]
[419173954,1775002243864,-500.0,0.00017573,2]
[419173956,1775002243874,-309.15217677,0.00017573,2]
[419173958,1775002243884,-500.0,0.00018121,2]
[419173971,1775002243993,-300.0,0.00018736,2]
[419173974,1775002244009,-500.0,0.00019273,2]
[419173976,1775002244018,-500.0,0.00019273,2]
[419173978,1775002244028,-500.0,0.00019273,2]
[419173980,1775002244037,-500.0,0.00019273,2]
[419173982,1775002244046,-500.0,0.00019273,2]
[419173984,1775002244055,-345.82473044,0.00019821,2]
[419173985,1775002244065,-217.64181013,0.00019821,2]
[419173986,1775002244074,-654.52870858,0.00019821,2]
[419173987,1775002244083,-1000.0,0.00019821,2]
[419173988,1775002244092,-500.0,0.00019821,2]
[419173989,1775002244101,-500.0,0.00019999,2]
[419173990,1775002244111,-2534.62923099,0.00019999,2]
[419173991,1775002244121,-500.0,0.00019999,2]
[419173992,1775002244130,-2534.62923099,0.00019999,2]
[419173993,1775002244140,-500.0,0.00019999,2]
[419173994,1775002244149,-2534.62923099,0.00019999,2]
[419173995,1775002244158,-2534.62923099,0.00019999,2]
[419173996,1775002244167,-2534.62923099,0.00019999,2]
[419173997,1775002244176,-2534.62923099,0.00019999,2]
[419173998,1775002244186,-500.0,0.00019999,2]
[419173999,1775002244195,-2534.62923099,0.00019999,2]
[419174001,1775002244205,-500.0,0.00019999,2]
[419174003,1775002244215,-500.0,0.00019999,2]
[419174005,1775002244224,-2534.62923099,0.00019999,2]
[419174007,1775002244233,-2534.62923099,0.00019999,2]
[419174009,1775002244242,-2534.62923099,0.00019999,2]
[419174011,1775002244252,-2534.62923099,0.00019999,2]
[419174013,1775002244261,-500.0,0.00019999,2]
[419174016,1775002244271,-500.0,0.00019999,2]
[419174018,1775002244281,-2534.62923099,0.00019999,2]
[419174020,1775002244290,-2534.62923099,0.00019999,2]
[419174022,1775002244300,-350.0,0.00019999,2]
[419174024,1775002244310,-500.0,0.00019999,2]
[419174026,1775002244320,-2534.62923099,0.00019999,2]
[419174028,1775002244330,-500.0,0.00019999,2]
[419174030,1775002244340,-500.0,0.00019999,2]
[419174032,1775002244349,-2534.62923099,0.00019999,2]
[419174034,1775002244359,-500.0,0.00019999,2]
[419174036,1775002244370,-2534.62923099,0.00019999,2]
[419174038,1775002244380,-2534.62923099,0.00019999,2]
[419174040,1775002244389,-500.0,0.00019999,2]
[419174042,1775002244399,-2534.62923099,0.00019999,2]
[419174044,1775002244408,-1325.08128264,0.00019999,2]
[419174046,1775002244421,-1209.54794835,0.00019999,2]
[419174048,1775002244430,-1415.75335108,0.00019999,2]
[419174050,1775002244441,-729.67770619,0.00019999,2]
[419174053,1775002244453,-389.19817372,0.00019999,2]
[419174055,1775002244462,-2534.62923099,0.00019999,2]
[419174057,1775002244472,-2534.62923099,0.00019999,2]
[419174059,1775002244481,-2495.06080541,0.0002,2]
[419174169,1775002246815,-366.0,0.00015155,2]
[419174176,1775002246871,-3244.07650706,0.00015155,2]
[419174178,1775002246884,-1389.92349294,0.00015155,2]
[419174180,1775002246894,-543.84317277,0.0002,2]
[419174405,1775002303044,1027.3,0.000326,120]
[419174406,1775002304053,1027.3,0.000328,120]
[419174407,1775002341720,161.34732986,0.00026336,120]
[419174408,1775002387298,1000.0,0.00030137,120]
[419174409,1775002387999,1000.0,0.00030137,120]
[419174410,1775002388721,1000.0,0.00030137,120]
[419174411,1775002389364,1000.0,0.00030137,120]
[419174412,1775002390022,1000.0,0.00030137,120]
[419174413,1775002390714,1000.0,0.00030137,120]
[419174414,1775002391305,1000.0,0.00030137,120]
[419174415,1775002392073,1000.0,0.00030137,120]
[419174416,1775002392762,1000.0,0.00030137,120]
[419174417,1775002393433,1000.0,0.00030137,120]
[419174418,1775002394047,1000.0,0.00030137,120]
[419174419,1775002394805,340.73634382,0.00030137,120]
[419174420,1775002435035,1000.0,0.00030137,120]
[419174421,1775002435695,1000.0,0.00030137,120]
[419174422,1775002436499,1000.0,0.00030137,120]
[419174423,1775002437156,1000.0,0.00030137,120]
[419174424,1775002437802,1000.0,0.00030137,120]
[419174425,1775002438454,1000.0,0.00030137,120]
[419174426,1775002482706,1000.0,0.00030137,120]
[419174427,1775002483864,1000.0,0.00030137,120]
[419174428,1775002484537,1000.0,0.00030137,120]
[419174430,1775002526349,1000.0,0.00030137,120]
[419174432,1775002607608,1000.0,0.00030137,120]
[419174436,1775002900182,154217.5370156,0.0003287,120]
[419174442,1775003219098,1027.3,0.000326,120]
[419174473,1775003416713,500.0,0.0003287,120]
[419174485,1775003433390,-367.38335282,0.00013699,2]
[419174486,1775003433402,-632.61664718,0.00013699,2]
[419174487,1775003433411,-176.850144,0.00015068,2]
[419174488,1775003433420,-1218.0817623,0.00015278,2]
[419174489,1775003433430,-1000.0,0.000155,2]
[419174490,1775003433439,-567.1972151,0.00017118,2]
[419174491,1775003433449,-514.355089,0.00017491,2]
[419174492,1775003433458,-250.0,0.00018101,2]
[419174493,1775003433468,-300.0,0.00019998,2]
[419174494,1775003433477,-300.0,0.00019998,2]
[419174495,1775003433486,-300.0,0.00019999,2]
[419174496,1775003433496,-1200.0,0.00019999,2]
[419174497,1775003433506,-11786.60528959,0.0002,2]
[419174500,1775003433516,-22787.01551085,0.0002,2]
[419174503,1775003433528,-212.98448915,0.0002,2]
[419174505,1775003433538,-272.22059066,0.0002,2]
[419174507,1775003433549,-2462.0817623,0.0002,2]
[419174509,1775003433561,-599.35241797,0.0002,2]
[419174527,1775003438790,-2395.53715269,0.0002,2]
[419174528,1775003438897,-779.92386347,0.0002,2]
[419174546,1775003444036,-608.45055747,0.0002,2]
[419174547,1775003444048,-2882.43365544,0.0002,2]
[419174548,1775003444058,-1400.36805411,0.0002061,2]
[419174549,1775003444068,-258.54229888,0.000209,2]
[419174550,1775003444078,-793.65599157,0.0002099,10]
[419174551,1775003444192,-901.02139435,0.0002099,10]
[419174555,1775003447070,-500.0,0.00020999,2]
[419174557,1775003447081,-500.0,0.00020999,2]
[419174558,1775003447092,-374.24994961,0.00020999,2]
[419174559,1775003447103,-500.0,0.00020999,2]
[419174560,1775003447113,-500.0,0.00020999,2]
[419174561,1775003447124,-500.0,0.00020999,2]
[419174562,1775003447135,-532.58512492,0.00020999,2]
[419174563,1775003447145,-152.69443884,0.00020999,2]
[419174564,1775003447155,-4230.81796802,0.00021,2]
[419174566,1775003540596,1000.0,0.00030137,120]
[419174567,1775003541253,500.0,0.00030137,120]
[419174569,1775003648214,500.0,0.00019999,120]
[419174570,1775003648467,500.0,0.00019999,120]
[419174571,1775003648695,500.0,0.00020999,120]
[419174572,1775003648930,500.0,0.00020999,120]
[419174573,1775003649315,500.0,0.00020999,120]
[419174574,1775003649675,500.0,0.00021099,120]
[419174575,1775003649834,500.0,0.00021499,120]
[419174576,1775003650090,500.0,0.00021917,120]
[419174577,1775003650337,513.16115508,0.00021999,120]
[419174584,1775003850078,468.8,0.00032876,120]
[419174586,1775003885671,487.5,0.00032876,120]
[419174590,1775004103236,1027.3,0.000326,120]
[419174591,1775004225286,6972.22081,0.00032876,120]
[419174597,1775004443300,255.0,0.00032876,120]
[419174677,1775004632192,-867.53430758,0.00013699,2]
[419174679,1775004632204,-132.46569242,0.00013699,2]
[419174681,1775004632214,-206.93430758,0.00017473,2]
[419174869,1775004641831,-293.06569242,0.00017473,2]
[419174871,1775004641841,-300.0,0.00017486,2]
[419174873,1775004641851,-122.51195117,0.00017575,2]
[419174875,1775004641862,-83.72685963,0.00017575,2]
[419174877,1775004641871,-1000.0,0.00018021,2]
[419174879,1775004641880,-500.0,0.00018067,2]
[419174881,1775004641890,-1200.0,0.00018072,2]
[419174883,1775004641899,-300.0,0.00018072,2]
[419174885,1775004641908,-50000.0,0.00018073,2]
[419174887,1775004641918,-500.0,0.00018073,2]
[419174889,1775004641928,-500.0,0.00018073,2]
[419174891,1775004641937,-500.0,0.00018073,2]
[419174893,1775004641947,-500.0,0.00018073,2]
[419174895,1775004641956,-500.0,0.00018073,2]
[419174897,1775004641966,-500.0,0.00018073,2]
[419174899,1775004641975,-500.0,0.00018073,2]
[419174901,1775004641985,-500.0,0.00018073,2]
[419174903,1775004641994,-500.0,0.00018073,2]
[419174905,1775004642003,-250.0,0.00018101,2]
[419174907,1775004642013,-2196.3900541,0.00018406,2]
[419174909,1775004642022,-1500.0,0.00018568,2]
[419174911,1775004642032,-1000.0,0.00018615,2]
[419174913,1775004642042,-1000.0,0.00018621,2]
[419174915,1775004642052,-500.0,0.00018621,2]
[419174917,1775004642062,-1000.0,0.00018621,2]
[419174919,1775004642072,-1000.0,0.00018621,2]
[419174921,1775004642081,-1000.0,0.00018621,2]
[419174923,1775004642091,-1000.0,0.00018621,2]
[419174925,1775004642101,-1000.0,0.00018621,2]
[419174927,1775004642110,-191.43155557,0.00018621,2]
[419174929,1775004642120,-1000.0,0.00018621,2]
[419174931,1775004642129,-183.30636304,0.00018667,2]
[419174932,1775004642139,-1000.0,0.00019116,2]
[419174934,1775004642148,-1500.0,0.00019163,2]
[419174936,1775004642158,-500.0,0.00019167,2]
[419174938,1775004642168,-500.0,0.00019167,2]
[419174940,1775004642178,-500.0,0.00019167,2]
[419174942,1775004642188,-500.0,0.00019167,2]
[419174944,1775004642197,-500.0,0.00019167,2]
[419174946,1775004642206,-500.0,0.00019167,2]
[419174948,1775004642215,-500.0,0.00019167,2]
[419174950,1775004642225,-500.0,0.00019167,2]
[419174952,1775004642234,-500.0,0.00019167,2]
[419174954,1775004642244,-500.0,0.00019167,2]
[419174956,1775004642254,-500.0,0.00019167,2]
[419174959,1775004642264,-500.0,0.00019167,2]
[419174960,1775004642274,-500.0,0.00019167,2]
[419174962,1775004642283,-500.0,0.00019167,2]
[419174965,1775004642294,-500.0,0.00019167,2]
[419174967,1775004642304,-500.0,0.00019167,2]
[419174968,1775004642313,-500.0,0.00019167,2]
[419174970,1775004642324,-500.0,0.00019167,2]
[419174973,1775004642334,-500.0,0.00019167,2]
[419174974,1775004642344,-600.0,0.00019167,2]
[419174976,1775004642354,-500.0,0.00019167,2]
[419174978,1775004642364,-500.0,0.00019167,2]
[419174980,1775004642373,-500.0,0.00019167,2]
[419174982,1775004642383,-500.0,0.00019167,2]
[419174985,1775004642392,-500.0,0.00019167,2]
[419174987,1775004642402,-500.0,0.00019167,2]
[419174988,1775004642411,-500.0,0.00019167,2]
[419174990,1775004642421,-179.32223513,0.00019167,2]
[419174992,1775004642430,-500.0,0.00019167,2]
[419174994,1775004642440,-500.0,0.00019167,2]
[419174997,1775004642451,-500.0,0.00019167,2]
[419174999,1775004642460,-500.0,0.00019167,2]
[419175001,1775004642470,-500.0,0.00019167,2]
[419175003,1775004642480,-500.0,0.00019167,2]
[419175004,1775004642490,-500.0,0.00019167,2]
[419175007,1775004642501,-500.0,0.00019167,2]
[419175009,1775004642512,-500.0,0.00019167,2]
[419175010,1775004642521,-1500.0,0.00019168,2]
[419175012,1775004642531,-342.02464982,0.00019168,2]
[419175015,1775004642541,-1619.61027975,0.00019168,2]
[419175017,1775004642550,-667.13817871,0.00019168,2]
[419175019,1775004642560,-1500.0,0.00019168,2]
[419175020,1775004642569,-1500.0,0.00019168,2]
[419175023,1775004642579,-1500.0,0.00019168,2]
[419175025,1775004642588,-6147.9229285,0.00019601,2]
[419175028,1775004642597,-217.3718384,0.00019601,2]
[419175031,1775004642606,-2114.77165158,0.00019711,2]
[419175034,1775004642615,-2000.0,0.00019716,2]
[419175036,1775004642624,-2000.0,0.00019716,2]
[419175038,1775004642634,-420.0,0.00019717,2]
[419175040,1775004642643,-1680.0,0.00019813,2]
[419175042,1775004642653,-2500.0,0.00020264,2]
[419175044,1775004642662,-1000.0,0.00020264,2]
[419175046,1775004642672,-1000.0,0.00020812,2]
[419175047,1775004642681,-155.0,0.000209,2]
[419175050,1775004642691,-500.0,0.00020973,2]
[419175052,1775004642700,-500.0,0.00020973,2]
[419175054,1775004642709,-500.0,0.00020973,2]
[419175056,1775004642719,-500.0,0.00020973,2]
[419175058,1775004642728,-495.28156353,0.00020973,2]
[419175060,1775004642737,-500.0,0.00020973,2]
[419175062,1775004642746,-500.0,0.00020973,2]
[419175064,1775004642757,-500.0,0.00020973,2]
[419175066,1775004642767,-500.0,0.00020973,2]
[419175067,1775004642776,-446.88067369,0.00020973,2]
[419175069,1775004642786,-500.0,0.00020973,2]
[419175072,1775004642796,-635.29,0.00020985,3]
[419175073,1775004642806,-476.5,0.00020989,3]
[419175075,1775004642815,-1270.57,0.0002099,3]
[419175077,1775004642825,-317.64,0.0002099,3]
[419175080,1775004642835,-158.82,0.0002099,3]
[419175082,1775004642844,-653.20436838,0.00020997,2]
[419175084,1775004642854,-500.0,0.00020997,2]
[419175086,1775004642864,-653.20436838,0.00020997,2]
[419175088,1775004642873,-500.0,0.00020997,2]
[419175090,1775004642883,-653.20436838,0.00020997,2]
[419175092,1775004642892,-300.44749507,0.00020997,2]
[419175094,1775004642901,-653.20436838,0.00020997,2]
[419175096,1775004642911,-500.0,0.00020997,2]
[419175098,1775004642920,-653.20436838,0.00020997,2]
[419175100,1775004642929,-653.20436838,0.00020997,2]
[419175102,1775004642938,-653.20436838,0.00020997,2]
[419175104,1775004642948,-500.0,0.00020997,2]
[419175106,1775004642957,-653.20436838,0.00020997,2]
[419175108,1775004642967,-500.0,0.00020997,2]
[419175110,1775004642975,-500.0,0.00020997,2]
[419175112,1775004642985,-653.20436838,0.00020997,2]
[419175114,1775004642994,-653.20436838,0.00020997,2]
[419175116,1775004643003,-500.0,0.00020997,2]
[419175118,1775004643013,-653.20436838,0.00020997,2]
[419175120,1775004643022,-653.20436838,0.00020997,2]
[419175122,1775004643031,-500.0,0.00020997,2]
[419175124,1775004643041,-653.20436838,0.00020997,2]
[419175126,1775004643051,-653.20436838,0.00020997,2]
[419175128,1775004643061,-500.0,0.00020997,2]
[419175130,1775004643070,-500.0,0.00020997,2]
[419175132,1775004643080,-653.20436838,0.00020997,2]
[419175134,1775004643090,-653.20436838,0.00020997,2]
[419175136,1775004643100,-653.20436838,0.00020997,2]
[419175138,1775004643110,-653.20436838,0.00020997,2]
[419175140,1775004643119,-151.0,0.00020998,2]
[419175142,1775004643129,-151.0,0.00020999,2]
[419175144,1775004643139,-151.0,0.00020999,2]
[419175145,1775004643148,-151.0,0.00020999,2]
[419175147,1775004643158,-1773.595775,0.00020999,2]
[419175149,1775004643168,-226.12090072,0.00020999,2]
[419175162,1775004643284,-789.29601842,0.00020999,2]
[419175165,1775004643301,-758.17885586,0.00020999,2]
[419175167,1775004643311,-397.60715357,0.00020999,2]
[419175173,1775004643362,-1375.98862143,0.00020999,2]
[419175175,1775004643372,-1773.595775,0.00020999,2]
[419175177,1775004643382,-494.444825,0.00020999,2]
[419175179,1775004643391,-494.444825,0.00020999,2]
[419175181,1775004643405,-494.444825,0.00020999,2]
[419175183,1775004643415,-494.444825,0.00020999,2]
[419175185,1775004643425,-28275.14336031,0.00021,2]
[419175414,1775004645976,-15038.87657182,0.00021,2]
[419175416,1775004645986,-241.678973,0.00021,2]
[419175418,1775004645996,-500.0,0.00021073,2]
[419175420,1775004646006,-13662.13390731,0.000211,2]
[419175431,1775004646189,-8857.84187301,0.000211,2]
[419175433,1775004646201,-8011.38451581,0.000211,2]
[419175434,1775004646211,-151.0,0.000211,2]
[419175436,1775004646221,-151.0,0.000211,2]
[419175438,1775004646232,-151.0,0.000211,2]
[419175439,1775004646242,-151.0,0.000211,2]
[419175441,1775004646251,-1773.595775,0.000211,2]
[419175442,1775004646261,-1773.595775,0.000211,2]
[419175444,1775004646271,-1773.595775,0.000211,2]
[419175446,1775004646281,-1773.595775,0.000211,2]
[419175447,1775004646290,-12.57340066,0.000211,2]
[419175449,1775004646302,-481.87142434,0.000211,2]
[419175451,1775004646312,-494.444825,0.000211,2]
[419175452,1775004646322,-494.444825,0.000211,2]
[419175454,1775004646332,-494.444825,0.000211,2]
[419175456,1775004646341,-1048.26775326,0.000215,2]
[419175457,1775004646351,-12970.77774804,0.000215,2]
[419175458,1775004646360,-587.0,0.00021512,2]
[419175460,1775004646370,-1000.0,0.00021521,2]
[419175462,1775004646380,-1000.0,0.00021521,2]
[419175463,1775004646390,-326.42322921,0.00021521,2]
[419175465,1775004646399,-1000.0,0.00021521,2]
[419175467,1775004646408,-1000.0,0.00021521,2]
[419175468,1775004646417,-1000.0,0.00021521,2]
[419175470,1775004646426,-1000.0,0.00021521,2]
[419175471,1775004646436,-1000.0,0.00021521,2]
[419175473,1775004646445,-217.3718384,0.00021561,2]
[419175475,1775004646455,-6147.9229285,0.0002162,2]
[419175476,1775004646464,-1000.0,0.00021621,2]
[419175478,1775004646475,-2351.0,0.00021723,2]
[419175480,1775004646484,-200.0,0.00021881,2]
[419175481,1775004646493,-155.0,0.000219,2]
[419175483,1775004646502,-176.850144,0.00021918,2]
[419175485,1775004646512,-151.0,0.00021918,2]
[419175486,1775004646521,-151.0,0.00021918,2]
[419175488,1775004646531,-151.0,0.00021918,2]
[419175490,1775004646541,-151.0,0.00021918,2]
[419175491,1775004646550,-240.154478,0.00021918,2]
[419175493,1775004646559,-151.0,0.00021918,2]
[419175494,1775004646568,-151.0,0.00021918,2]
[419175496,1775004646578,-151.0,0.00021918,2]
[419175498,1775004646587,-151.0,0.00021918,2]
[419175499,1775004646597,-151.0,0.00021918,2]
[419175501,1775004646607,-151.0,0.00021918,2]
[419175503,1775004646617,-151.0,0.00021918,2]
[419175504,1775004646626,-151.0,0.00021918,2]
[419175506,1775004646636,-151.0,0.00021918,2]
[419175508,1775004646646,-151.0,0.00021918,2]
[419175509,1775004646655,-151.0,0.00021918,2]
[419175511,1775004646665,-151.0,0.00021918,2]